[Event "1000GM MLK Day RR IM-Norm 2024"]
[Site "Sunnyvale"]
[Date "2024.01.20"]
[Round "6.4"]
[White "Guo, Ethan"]
[Black "Guo, Andrew"]
[Result "1/2-1/2"]
[ECO "B33"]
[WhiteElo "2099"]
[BlackElo "2255"]
[Annotator "RC"]
[PlyCount "118"]
[EventDate "2024.01.12"]
[EventType "tourn"]
[EventCountry "USA"]
[SourceTitle "playchess.com"]
[Source "ChessBase"]
[SourceQuality "1"]
[TimeControl "5400+30"]

1. e4 {[%emt 0:00:01]} c5 {[%emt 0:00:10]} 2. Nf3 {[%emt 0:00:08]} Nc6 {[%emt 0:00:03]} 3. d4 {[%emt 0:00:10]} cxd4 {[%emt 0:00:03]} 4. Nxd4 {[%emt 0:00:07]} Nf6 {[%emt 0:00:03]} 5. Nc3 {[%emt 0:00:10]} e5 {[%emt 0:00:01]} 6. Ndb5 {[%emt 0:00:11]} d6 {[%emt 0:00:02]} 7. Bg5 {[%emt 0:00:12]} a6 {[%emt 0:00:09]} 8. Na3 {[%emt 0:00:02]} b5 {[%emt 0:00:04]} 9. Nd5 {[%emt 0:00:09]} Be7 {[%emt 0:00:01]} 10. Bxf6 {[%emt 0:00:05]} Bxf6 {[%emt 0:00:03]} 11. c3 {[%emt 0:00:12]} Bg5 {[%emt 0:00:02]} 12. Nc2 {[%emt 0:00:09]} Rb8 {[%emt 0:00:02]} 13. a4 {[%emt 0:00:07]} bxa4 {[%emt 0:00:02]} 14. Ncb4 {[%emt 0:00:08]} Nxb4 {[%emt 0:00:04]} 15. cxb4 {[%emt 0:00:08]} O-O {[%emt 0:00:13]} 16. Rxa4 {[%emt 0:00:09]} a5 {[%emt 0:00:01]} 17. b5 {[%emt 0:00:09]} Bd7 {[%emt 0:00:02]} 18. h4 {[%emt 0:00:13]} Bh6 {[%emt 0:00:02]} 19. Nc3 {[%emt 1:37:30]} d5 {[%emt 0:01:00]} 20. exd5 {[%emt 0:00:00]} f5 {[%emt 0:01:38]} 21. Be2 {[%emt 0:00:00]} e4 {[%emt 0:00:04]} 22. g3 {[%emt 0:00:00]} f4 {[%emt 0:00:29]} 23. Rxe4 {[%emt 0:00:00]} fxg3 {[%emt 0:01:53]} 24. fxg3 {[%emt 0:00:00]} Bf5 {[%emt 0:05:54]} 25. O-O {[%emt 0:00:00]} Bxe4 {[%emt 0:00:23]} 26. Nxe4 {[%emt 0:00:00]} Qb6+ {[%emt 0:03:58]} 27. Kg2 {[%emt 0:00:00]} Rxf1 {[%emt 0:01:27]} 28. Bxf1 {[%emt 0:00:00]} Qe3 {[%emt 0:01:45]} 29. Qd3 {[%emt 0:00:00]} Qxd3 {[%emt 0:21:05]} 30. Bxd3 {[%emt 0:00:00]} Be3 {[%emt 0:00:06]} 31. d6 {[%emt 0:00:00]} h6 {[%emt 0:14:51]} 32. Bc4+ {[%emt 0:00:00]} Kf8 {[%emt 0:00:07]} 33. Kf3 {[%emt 0:00:00]} Bd4 {[%emt 0:00:08]} 34. b3 {[%emt 0:00:00]} Be5 {[%emt 0:03:20]} 35. Nc5 {[%emt 0:00:00]} Bxd6 {[%emt 0:01:20]} 36. Nd7+ {[%emt 0:00:00]} Ke7 {[%emt 0:00:00]} 37. Nxb8 {[%emt 0:00:00]} Bxb8 {[%emt 0:00:02]} 38. g4 {[%emt 0:00:00]} Kd6 {[%emt 0:01:05]} 39. Ke4 {[%emt 0:00:00]} Bc7 {[%emt 0:01:12]} 40. Kf5 {[%emt 0:00:00]} Ke7 {[%emt 0:00:30]} 41. Kg6 {[%emt 0:00:00]} Kf8 {[%emt 0:00:06]} 42. h5 {[%emt 0:00:00]} Bg3 {[%emt 0:01:56]} 43. b6 {[%emt 0:00:00]} Bb8 {[%emt 0:00:54]} 44. Be6 {[%emt 0:00:00]} Bh2 {[%emt 0:01:06]} 45. Bd5 {[%emt 0:00:00]} Bb8 {[%emt 0:00:33]} 46. Bg2 {[%emt 0:00:00]} Bh2 {[%emt 0:01:19]} 47. Kf5 {[%emt 0:00:00]} Ke7 {[%emt 0:00:24]} 48. Ke4 {[%emt 0:00:00]} Ke6 {[%emt 0:03:49]} 49. Kd3 {[%emt 0:00:00]} Bg1 {[%emt 0:01:54]} 50. b7 {[%emt 0:00:00]} Ba7 {[%emt 0:00:02]} 51. Kc4 {[%emt 0:00:00]} Kd6 {[%emt 0:00:03]} 52. Kb5 {[%emt 0:00:00]} Kc7 {[%emt 0:00:06]} 53. Kxa5 {[%emt 0:00:00]} Kb8 {[%emt 0:00:02]} 54. Kb5 {[%emt 0:00:00]} Bd4 {[%emt 0:00:32]} 55. Kc6 Ba1 {[%emt 0:00:12]} 56. Kd6 {[%emt 0:00:00]} Bb2 {[%emt 0:00:12]} 57. Ke6 {[%emt 0:00:00]} Ba1 {[%emt 0:00:02]} 58. Kf7 {[%emt 0:00:00]} Bb2 {[%emt 0:00:03]} 59. b4 {[%emt 0:00:00]} Ba1 {[%emt 0:00:03]} 1/2-1/2

[Event "1000GM MLK Day RR IM-Norm 2024"]
[Site "Sunnyvale"]
[Date "2024.01.20"]
[Round "6.5"]
[White "Figueredo Losada, Leonel"]
[Black "Dominguez Aguilar, Guillermo"]
[Result "0-1"]
[ECO "B76"]
[WhiteElo "2381"]
[BlackElo "2319"]
[Annotator "RC"]
[PlyCount "70"]
[EventDate "2024.01.12"]
[EventType "tourn"]
[EventCountry "USA"]
[SourceTitle "playchess.com"]
[Source "ChessBase"]
[SourceQuality "1"]
[TimeControl "5400+30"]

1. e4 {[%emt 0:07:22]} c5 {[%emt 0:00:15]} 2. Nf3 {[%emt 0:00:21]} d6 {[%emt 0:00:58]} 3. d4 {[%emt 0:01:37]} cxd4 {[%emt 0:00:09]} 4. Nxd4 {[%emt 0:00:03]} Nf6 {[%emt 0:00:13]} 5. Nc3 {[%emt 0:00:04]} g6 {[%emt 0:01:07]} 6. Be3 {[%emt 0:00:31]} Bg7 {[%emt 0:00:11]} 7. f3 {[%emt 0:00:04]} Nc6 {[%emt 0:00:57]} 8. Qd2 {[%emt 0:00:10]} O-O {[%emt 0:00:34]} 9. O-O-O {[%emt 0:00:56]} d5 {[%emt 0:01:07]} 10. Nxc6 {[%emt 0:00:08]} bxc6 {[%emt 0:00:17]} 11. Bh6 {[%emt 0:00:01]} Be6 {[%emt 0:05:10]} 12. Bxg7 {[%emt 0:01:31]} Kxg7 {[%emt 0:00:32]} 13. exd5 {[%emt 0:00:02]} Bxd5 {[%emt 0:16:15]} 14. Na4 {[%emt 0:15:08]} Qc7 {[%emt 0:11:38]} 15. c4 {[%emt 0:08:30]} Be6 {[%emt 0:00:23]} 16. Bd3 {[%emt 0:00:02]} c5 {[%emt 0:11:21]} 17. Qe3 {[%emt 0:01:57]} Rac8 {[%emt 0:01:13]} 18. g3 {[%emt 0:09:30]} Qa5 {[%emt 0:03:26]} 19. Nc3 {[%emt 0:11:39]} Qb4 {[%emt 0:44:14]} 20. Rhe1 {[%emt 0:11:56]} Rb8 {[%emt 0:00:00]} 21. Qe2 {[%emt 0:06:56]} Rfd8 {[%emt 0:00:00]} 22. Qc2 {[%emt 0:01:41]} Rd6 {[%emt 0:00:00]} 23. b3 {[%emt 0:00:58]} Rbd8 {[%emt 0:00:00]} 24. g4 {[%emt 0:00:21]} Rd4 {[%emt 0:00:00]} 25. Re3 {[%emt 0:02:08]} Qb8 {[%emt 0:00:00]} 26. Ne2 {[%emt 0:01:43]} R4d7 {[%emt 0:00:00]} 27. h3 {[%emt 0:03:14]} Qh2 {[%emt 0:00:00]} 28. Qc3 {[%emt 0:03:11]} Kg8 {[%emt 0:00:00]} 29. f4 {[%emt 0:00:50]} Bxg4 {[%emt 0:00:00]} 30. hxg4 {[%emt 0:01:08]} Nxg4 {[%emt 0:00:00]} 31. Bc2 {[%emt 0:02:36]} Rxd1+ {[%emt 0:00:00]} 32. Bxd1 {[%emt 0:00:03]} Nxe3 {[%emt 0:00:00]} 33. Qxe3 {[%emt 0:00:03]} Qh4 {[%emt 0:00:00]} 34. Nc3 {[%emt 0:01:57]} Rd4 {[%emt 0:00:00]} 35. Ne2 {[%emt 0:01:08]} Qe1 {[%emt 0:00:00]} 0-1

[Event "1000GM MLK Day RR IM-Norm 2024"]
[Site "Sunnyvale"]
[Date "2024.01.21"]
[Round "7.1"]
[White "Dominguez Aguilar, Guillermo"]
[Black "Deng, Henry"]
[Result "1/2-1/2"]
[ECO "A11"]
[WhiteElo "2319"]
[BlackElo "2281"]
[Annotator "RC"]
[PlyCount "40"]
[EventDate "2024.01.12"]
[EventType "tourn"]
[EventCountry "USA"]
[SourceTitle "playchess.com"]
[Source "ChessBase"]
[SourceQuality "1"]
[TimeControl "5400+30"]

1. c4 {[%emt 0:01:12]} c6 {[%emt 0:00:12]} 2. b3 {[%emt 0:01:07]} d5 {[%emt 0:00:30]} 3. Bb2 {[%emt 0:00:09]} Nf6 {[%emt 0:00:46]} 4. e3 {[%emt 0:00:35]} Bg4 {[%emt 0:01:07]} 5. f3 {[%emt 0:06:23]} Bf5 {[%emt 0:02:04]} 6. Ne2 {[%emt 0:00:23]} Bd3 {[%emt 0:03:40]} 7. Nf4 {[%emt 0:05:24]} Bxf1 {[%emt 0:01:28]} 8. Kxf1 {[%emt 0:00:14]} Nbd7 {[%emt 0:00:51]} 9. cxd5 {[%emt 0:00:46]} cxd5 {[%emt 0:00:30]} 10. Nc3 {[%emt 0:00:28]} Qa5 {[%emt 0:02:11]} 11. d4 {[%emt 0:00:53]} e6 {[%emt 0:00:42]} 12. Qd3 {[%emt 0:01:24]} Bd6 {[%emt 0:02:33]} 13. Nfe2 {[%emt 0:02:02]} O-O {[%emt 0:00:31]} 14. Kf2 {[%emt 0:00:15]} a6 {[%emt 0:01:48]} 15. a3 {[%emt 0:02:32]} b5 {[%emt 0:02:24]} 16. h3 {[%emt 0:04:24]} Qb6 {[%emt 0:03:06]} 17. Rhc1 {[%emt 0:00:12]} Rfc8 {[%emt 0:02:29]} 18. g4 {[%emt 0:00:32]} b4 {[%emt 0:01:04]} 19. axb4 {[%emt 0:00:32]} Bxb4 {[%emt 0:00:28]} 20. Rcb1 {[%emt 0:00:47]} Qd6 {[%emt 0:00:30]} 1/2-1/2

[Event "1000GM MLK Day RR IM-Norm 2024"]
[Site "Sunnyvale"]
[Date "2024.01.21"]
[Round "7.2"]
[White "Guo, Andrew"]
[Black "Figueredo Losada, Leonel"]
[Result "1-0"]
[ECO "A58"]
[WhiteElo "2255"]
[BlackElo "2381"]
[Annotator "RC"]
[PlyCount "53"]
[EventDate "2024.01.12"]
[EventType "tourn"]
[EventCountry "USA"]
[SourceTitle "playchess.com"]
[Source "ChessBase"]
[SourceQuality "1"]
[TimeControl "5400+30"]

1. d4 {[%emt 0:00:01]} Nf6 {[%emt 1:31:00]} 2. c4 {[%emt 0:00:41]} g6 {[%emt 0:00:00]} 3. Nf3 {[%emt 0:00:07]} Bg7 {[%emt 0:00:00]} 4. g3 {[%emt 0:00:03]} c5 {[%emt 0:00:00]} 5. d5 {[%emt 0:00:26]} b5 {[%emt 0:00:00]} 6. cxb5 {[%emt 0:02:52]} a6 {[%emt 0:00:00]} 7. bxa6 {[%emt 0:00:07]} O-O {[%emt 0:00:00]} 8. Nc3 {[%emt 0:00:35]} d6 {[%emt 0:00:00]} 9. Bg2 {[%emt 0:01:30]} Nbd7 {[%emt 0:00:00]} 10. O-O {[%emt 0:00:07]} Nb6 {[%emt 0:00:00]} 11. Re1 {[%emt 0:01:04]} Bxa6 {[%emt 0:00:00]} 12. e4 {[%emt 0:01:23]} Nfd7 {[%emt 0:00:00]} 13. Bf1 {[%emt 0:26:10]} Bxf1 {[%emt 0:00:00]} 14. Kxf1 {[%emt 0:00:23]} Nc4 {[%emt 0:00:00]} 15. Qe2 Nde5 {[%emt 0:07:00]} 16. Nxe5 {[%emt 0:12:49]} Nxe5 {[%emt 0:00:00]} 17. f4 {[%emt 0:01:49]} Nd7 {[%emt 0:00:00]} 18. Bd2 {[%emt 0:01:37]} Qb6 {[%emt 0:00:00]} 19. b3 {[%emt 0:05:32]} Rfb8 {[%emt 0:00:00]} 20. Rac1 {[%emt 0:01:43]} Ra3 {[%emt 0:00:00]} 21. Na4 {[%emt 0:04:34]} Qb5 {[%emt 0:00:00]} 22. Qxb5 {[%emt 0:06:06]} Rxb5 {[%emt 0:00:00]} 23. Rc2 {[%emt 0:00:23]} c4 {[%emt 0:00:00]} 24. Bc1 {[%emt 0:14:30]} Rxa4 {[%emt 0:00:00]} 25. bxa4 {[%emt 0:00:05]} Rb4 {[%emt 0:00:00]} 26. a5 {[%emt 0:02:00]} c3 {[%emt 0:00:00]} 27. e5 {[%emt 0:00:38]} 1-0

[Event "1000GM MLK Day RR IM-Norm 2024"]
[Site "Sunnyvale"]
[Date "2024.01.21"]
[Round "7.3"]
[White "Bansal, Advay"]
[Black "Guo, Ethan"]
[Result "1/2-1/2"]
[ECO "B72"]
[WhiteElo "2253"]
[BlackElo "2099"]
[Annotator "RC"]
[PlyCount "178"]
[EventDate "2024.01.12"]
[EventType "tourn"]
[EventCountry "USA"]
[SourceTitle "playchess.com"]
[Source "ChessBase"]
[SourceQuality "1"]
[TimeControl "5400+30"]

1. e4 {[%emt 0:00:01]} c5 {[%emt 0:00:00]} 2. Nf3 {[%emt 0:00:21]} d6 {[%emt 0:00:03]} 3. d4 {[%emt 0:00:08]} cxd4 {[%emt 0:00:05]} 4. Nxd4 {[%emt 0:00:09]} Nf6 {[%emt 0:00:04]} 5. Nc3 {[%emt 0:00:05]} a6 {[%emt 0:00:05]} 6. Bd3 {[%emt 0:00:03]} g6 {[%emt 0:00:11]} 7. f3 {[%emt 0:00:14]} Bg7 {[%emt 0:00:13]} 8. Be3 {[%emt 0:00:12]} O-O {[%emt 0:00:39]} 9. Qd2 {[%emt 0:00:04]} Nc6 {[%emt 0:02:59]} 10. O-O-O {[%emt 0:00:34]} Nxd4 {[%emt 0:01:06]} 11. Bxd4 {[%emt 0:00:04]} b5 {[%emt 0:00:15]} 12. Kb1 {[%emt 0:06:27]} Bb7 {[%emt 0:08:35]} 13. h4 {[%emt 0:04:03]} e5 {[%emt 0:02:54]} 14. Be3 {[%emt 0:00:20]} d5 {[%emt 0:08:02]} 15. Nxd5 {[%emt 0:04:37]} Nxd5 {[%emt 0:00:29]} 16. exd5 {[%emt 0:00:03]} Bxd5 {[%emt 0:01:52]} 17. h5 {[%emt 0:03:54]} Qf6 {[%emt 0:04:15]} 18. Bg5 {[%emt 0:26:02]} Qe6 {[%emt 0:00:44]} 19. Bh6 {[%emt 0:03:30]} Bxh6 {[%emt 0:03:30]} 20. Qxh6 {[%emt 0:00:09]} Ra7 {[%emt 0:00:22]} 21. a3 {[%emt 0:08:37]} Re7 {[%emt 0:08:13]} 22. Rh3 {[%emt 0:09:29]} Rd8 {[%emt 0:07:22]} 23. Rg3 {[%emt 0:06:13]} Bc4 {[%emt 0:01:09]} 24. hxg6 {[%emt 0:03:33]} fxg6 {[%emt 0:00:45]} 25. Qe3 {[%emt 0:08:06]} Bxd3 {[%emt 0:01:23]} 26. Rxd3 {[%emt 0:00:23]} Rxd3 {[%emt 0:00:31]} 27. Qxd3 {[%emt 0:01:45]} Rd7 {[%emt 0:00:12]} 28. Qe2 {[%emt 0:00:15]} Qd5 {[%emt 0:01:43]} 29. Rg4 {[%emt 0:02:47]} Qd1+ {[%emt 0:01:45]} 30. Qxd1 {[%emt 0:00:04]} Rxd1+ {[%emt 0:46:04]} 31. Ka2 {[%emt 0:00:03]} Rd2 {[%emt 0:00:00]} 32. Kb3 {[%emt 0:01:25]} Kg7 {[%emt 0:00:00]} 33. Kc3 {[%emt 0:02:50]} Rf2 {[%emt 0:00:00]} 34. Kd3 {[%emt 0:00:23]} h5 {[%emt 0:00:00]} 35. Rg3 {[%emt 0:01:09]} Kf6 {[%emt 0:00:00]} 36. b3 {[%emt 0:01:07]} g5 {[%emt 0:00:00]} 37. Rh3 {[%emt 0:01:48]} h4 {[%emt 0:00:00]} 38. Rh2 {[%emt 0:03:01]} Kf5 {[%emt 0:00:00]} 39. Ke3 {[%emt 0:02:31]} Rf1 {[%emt 0:00:00]} 40. Rh3 {[%emt 0:01:59]} Rg1 {[%emt 0:00:00]} 41. Rh2 {[%emt 0:00:15]} Rc1 {[%emt 0:00:00]} 42. g3 {[%emt 0:00:53]} hxg3 {[%emt 0:00:00]} 43. Rg2 {[%emt 0:00:03]} Re1+ {[%emt 0:00:00]} 44. Kd2 {[%emt 0:00:22]} Ra1 {[%emt 0:00:00]} 45. Rxg3 {[%emt 0:00:26]} Rxa3 {[%emt 0:00:00]} 46. Rg1 {[%emt 0:01:25]} b4 {[%emt 0:00:00]} 47. Rg4 {[%emt 0:01:26]} a5 {[%emt 0:00:00]} 48. Rg1 {[%emt 0:00:35]} Ra2 {[%emt 0:00:00]} 49. Rg4 {[%emt 0:00:24]} Ra1 {[%emt 0:00:00]} 50. Rc4 {[%emt 0:00:25]} Rh1 {[%emt 0:00:00]} 51. Ke3 {[%emt 0:00:16]} Rh3 {[%emt 0:00:00]} 52. Kf2 {[%emt 0:00:21]} e4 {[%emt 0:00:00]} 53. Rxe4 {[%emt 0:01:09]} Rh2+ {[%emt 0:00:00]} 54. Kg3 {[%emt 0:00:03]} Rxc2 {[%emt 0:00:00]} 55. Re8 {[%emt 0:00:25]} Rc5 {[%emt 0:00:00]} 56. Rg8 {[%emt 0:00:47]} Re5 {[%emt 0:00:00]} 57. Ra8 {[%emt 0:00:26]} Ke6 {[%emt 0:00:00]} 58. Kg4 {[%emt 0:00:49]} Kd6 {[%emt 0:00:00]} 59. Ra6+ {[%emt 0:00:06]} Kc7 {[%emt 0:00:00]} 60. Rg6 {[%emt 0:00:31]} Kb7 {[%emt 0:00:00]} 61. f4 {[%emt 0:00:36]} gxf4 {[%emt 0:00:00]} 62. Kxf4 {[%emt 0:00:08]} Rc5 {[%emt 0:00:00]} 63. Ke4 {[%emt 0:00:26]} Rc3 {[%emt 0:00:00]} 64. Rg7+ {[%emt 0:00:05]} Kb6 {[%emt 0:00:00]} 65. Rg6+ {[%emt 0:00:09]} Kb5 {[%emt 0:00:00]} 66. Rg5+ {[%emt 0:00:06]} Rc5 {[%emt 0:00:00]} 67. Rg8 {[%emt 0:00:03]} Rc3 {[%emt 0:00:00]} 68. Rg5+ {[%emt 0:00:03]} Kc6 {[%emt 0:00:00]} 69. Rg6+ {[%emt 0:00:45]} Kd7 {[%emt 0:00:00]} 70. Rg7+ {[%emt 0:00:22]} Kc6 {[%emt 0:00:00]} 71. Rg6+ {[%emt 0:00:02]} Kb5 {[%emt 0:00:00]} 72. Rg5+ {[%emt 0:00:05]} Kb6 {[%emt 0:00:00]} 73. Rg6+ {[%emt 0:00:09]} Rc6 {[%emt 0:00:00]} 74. Rg5 {[%emt 0:00:17]} Rd6 {[%emt 0:00:00]} 75. Rh5 {[%emt 0:00:14]} Rc6 {[%emt 0:00:00]} 76. Rg5 {[%emt 0:00:10]} Rc5 {[%emt 0:00:00]} 77. Rg1 {[%emt 0:01:03]} Kb5 {[%emt 0:00:00]} 78. Rg8 {[%emt 0:00:00]} Rc6 {[%emt 0:00:00]} 79. Rg5+ {[%emt 0:00:01]} Ka6 {[%emt 0:00:00]} 80. Kd4 {[%emt 0:00:35]} a4 {[%emt 0:00:00]} 81. bxa4 {[%emt 0:00:11]} Rb6 {[%emt 0:00:00]} 82. Kd3 {[%emt 0:01:11]} b3 {[%emt 0:00:00]} 83. Rb5 {[%emt 0:00:12]} Rxb5 {[%emt 0:00:00]} 84. axb5+ {[%emt 0:00:05]} Kxb5 {[%emt 0:00:00]} 85. Kc3 {[%emt 0:00:02]} Ka4 {[%emt 0:00:00]} 86. Kb2 {[%emt 0:00:03]} Kb4 {[%emt 0:00:00]} 87. Kb1 {[%emt 0:00:02]} Kc3 {[%emt 0:00:00]} 88. Kc1 {[%emt 0:00:04]} b2+ {[%emt 0:00:00]} 89. Kb1 {[%emt 0:00:03]} Kb3 {[%emt 0:00:00]} 1/2-1/2

[Event "1000GM MLK Day RR IM-Norm 2024"]
[Site "Sunnyvale"]
[Date "2024.01.21"]
[Round "7.4"]
[White "Chiang, Jacob"]
[Black "Tang, Dylan"]
[Result "1/2-1/2"]
[ECO "D36"]
[WhiteElo "2200"]
[BlackElo "2206"]
[Annotator "RC"]
[PlyCount "76"]
[EventDate "2024.01.12"]
[EventType "tourn"]
[EventCountry "USA"]
[SourceTitle "playchess.com"]
[Source "ChessBase"]
[SourceQuality "1"]
[TimeControl "5400+30"]

1. c4 {[%emt 0:00:01]} e6 {[%emt 0:00:44]} 2. Nc3 {[%emt 0:00:03]} d5 {[%emt 0:00:06]} 3. d4 {[%emt 0:00:03]} Nf6 {[%emt 0:00:09]} 4. cxd5 {[%emt 0:00:10]} exd5 {[%emt 0:00:18]} 5. Bg5 {[%emt 0:00:04]} c6 {[%emt 0:00:05]} 6. e3 {[%emt 0:00:04]} Be7 {[%emt 0:00:05]} 7. Qc2 {[%emt 0:00:55]} Nbd7 {[%emt 0:01:02]} 8. Nf3 {[%emt 0:00:07]} Nf8 {[%emt 0:00:44]} 9. Bd3 {[%emt 0:00:18]} Ne6 {[%emt 0:00:10]} 10. Bh4 {[%emt 0:00:38]} g6 {[%emt 0:00:54]} 11. O-O {[%emt 0:00:34]} O-O {[%emt 0:00:33]} 12. Rab1 {[%emt 0:04:30]} a5 {[%emt 0:00:25]} 13. Ne5 {[%emt 0:01:52]} Ng7 {[%emt 0:02:01]} 14. f3 {[%emt 0:02:59]} Bf5 {[%emt 0:02:35]} 15. Bf2 {[%emt 0:01:41]} Bxd3 {[%emt 1:28:09]} 16. Qxd3 {[%emt 0:00:22]} Bd6 {[%emt 0:00:00]} 17. Qd2 {[%emt 0:04:27]} Qc7 {[%emt 0:00:00]} 18. e4 {[%emt 0:03:14]} dxe4 {[%emt 0:00:00]} 19. fxe4 {[%emt 0:02:58]} Bxe5 {[%emt 0:00:00]} 20. dxe5 {[%emt 0:00:03]} Rad8 {[%emt 0:00:00]} 21. Qg5 {[%emt 0:01:11]} Nd7 {[%emt 0:00:00]} 22. Bg3 {[%emt 0:01:47]} Ne6 {[%emt 0:00:00]} 23. Qe7 {[%emt 0:05:09]} Nb6 {[%emt 0:00:00]} 24. Qxc7 {[%emt 0:00:56]} Nxc7 {[%emt 0:00:00]} 25. b4 {[%emt 0:01:37]} Nc4 {[%emt 0:00:00]} 26. Rfc1 {[%emt 0:02:29]} axb4 {[%emt 0:00:00]} 27. Rxb4 {[%emt 0:00:25]} b5 {[%emt 0:00:00]} 28. e6 {[%emt 0:13:04]} Nxe6 {[%emt 0:00:00]} 29. a4 {[%emt 0:00:04]} Nd6 {[%emt 0:00:00]} 30. axb5 {[%emt 0:01:16]} Nxb5 {[%emt 0:00:00]} 31. Nxb5 {[%emt 0:00:45]} cxb5 {[%emt 0:00:00]} 32. Rxb5 {[%emt 0:00:58]} Rd2 {[%emt 0:00:00]} 33. Rcb1 {[%emt 0:04:42]} Re2 {[%emt 0:00:00]} 34. Re1 {[%emt 0:05:12]} Rxe1+ {[%emt 0:00:00]} 35. Bxe1 {[%emt 0:00:15]} Rc8 {[%emt 0:00:00]} 36. Bd2 {[%emt 0:04:52]} Kg7 {[%emt 0:00:00]} 37. Kf2 {[%emt 0:01:32]} Rc5 {[%emt 0:00:00]} 38. Rxc5 {[%emt 0:00:16]} Nxc5 {[%emt 0:00:00]} 1/2-1/2

[Event "1000GM MLK Day RR IM-Norm 2024"]
[Site "Sunnyvale"]
[Date "2024.01.21"]
[Round "7.5"]
[White "Delgado Ramirez, Neuris"]
[Black "Arenas, David"]
[Result "1/2-1/2"]
[ECO "C96"]
[WhiteElo "2517"]
[BlackElo "2406"]
[Annotator "TA"]
[PlyCount "50"]
[EventDate "2024.01.12"]
[EventType "tourn"]
[EventCountry "USA"]
[SourceTitle "playchess.com"]
[Source "ChessBase"]
[SourceQuality "1"]
[TimeControl "5400+30"]

{[%evp 23,50,14,18,2,10,21,22,0,0,0,27,6,42,19,15,13,9,0,10,9,12,8,20,-8,-8,-8,-3,-22,0]} 1. e4 {[%emt 0:06:01]} e5 {[%emt 0:02:38]} 2. Nf3 {[%emt 0:00:09]} Nc6 {[%emt 0:00:07]} 3. Bb5 {[%emt 0:00:16]} a6 {[%emt 0:00:06]} 4. Ba4 {[%emt 0:00:06]} Nf6 {[%emt 0:00:08]} 5. O-O {[%emt 0:00:19]} Be7 {[%emt 0:00:28]} 6. Re1 {[%emt 0:00:31]} b5 {[%emt 0:00:35]} 7. Bb3 {[%emt 0:00:11]} d6 {[%emt 0:00:18]} 8. c3 {[%emt 0:00:54]} O-O {[%emt 0:00:14]} 9. h3 {[%emt 0:00:27]} Na5 {[%emt 0:01:39]} 10. Bc2 {[%emt 0:00:06]} c5 {[%emt 0:00:07]} 11. d3 {[%emt 0:00:39]} Qc7 {[%emt 0:01:14]} 12. Nbd2 {[%emt 0:00:45][%cal Bb1d2,Bd2f1,Bf1g3][%mdl 32]} Nc6 {[%emt 0:00:56]} 13. Nf1 {[%emt 0:00:51] C96: Closed Ruy Lopez: Chigorin Defence: 11 d4, replies other than 11...Qc7.} h6 {[%emt 0:01:32]} 14. Ng3 {[%emt 0:01:10]} Re8 {[%emt 0:00:09]} 15. a4 {[%emt 0:01:40] Threatens to win with axb5.} Be6 {[%emt 0:01:28]} 16. Nh4 {[%emt 0:01:58]} Bf8 {[%emt 0:01:08] [#]} 17. Nhf5 $146 {[%emt 0:00:55]} ({Predecessor:} 17. Qf3 Nd7 18. Nhf5 Kh7 19. Bd2 g6 20. Ne3 Bg7 21. Nd5 Qb7 22. a5 Ne7 23. Ne3 {1-0 Dovletov,H (2137)-Valkama,E (2179) World School-ch U17 11th 2015 (6)}) 17... Kh7 {[%emt 0:01:00]} 18. axb5 {[%emt 0:01:23]} axb5 {[%emt 0:00:05] The position is equal.} 19. Rxa8 {[%emt 0:00:05]} Rxa8 {[%emt 0:00:04]} 20. d4 {[%emt 0:00:47][%cal Of5g7]} cxd4 {[%emt 0:05:31] [#]} 21. Nxd4 $1 {[%emt 0:00:47]} Nxd4 {[%emt 0:08:47]} 22. cxd4 {[%emt 0:00:15]} Ra1 {[%emt 0:01:46]} 23. Bd3 {[%emt 0:03:13]} (23. d5 $5 {[%cal Rd5e6]} Bd7 24. Qd3 $14) 23... Bc4 {[%emt 0:01:07] aiming for ...Bxd3.} 24. Qc2 {[%emt 0:00:49]} Qa5 {[%emt 0:00:13]} (24... exd4 $2 25. e5+ g6 26. exf6 $18) 25. Rd1 {[%emt 0:00:44]} (25. Rf1 $5 {[%cal Rd3c4]}) 25... Bxd3 {[%emt 0:00:17] A rather calm draw.   Weighted Error Value: White=0.11 (very precise) /Black=0.09 (flawless)} 1/2-1/2